[Event "*** Titled Tuesday 3|2 Blitz"]
[Site "Chess.com"]
[Date "2016.07.05"]
[Round "8"]
[White "underdogchss"]
[Black "SwiftyMcBishop"]
[Result "1-0"]
[WhiteElo "2350"]
[BlackElo "2072"]
[TimeControl "180+2"]
[EndTime "18:41:46 PDT"]
[Termination "underdogchss won by resignation"]

1. d4 {[%clk 0:03:01.9]} 1... d5 {[%clk 0:02:42.8]} 2. Nf3 {[%clk 0:03:01.8]}
2... Nf6 {[%clk 0:02:43.5]} 3. c4 {[%clk 0:03:03.5]} 3... dxc4 {[%clk
0:02:43.3]} 4. e3 {[%clk 0:03:04.5]} 4... e6 {[%clk 0:02:41.6]} 5. Bxc4 {[%clk
0:03:05.6]} 5... a6 {[%clk 0:02:39.2]} 6. O-O {[%clk 0:03:05.8]} 6... c5 {[%clk
0:02:38.9]} 7. Bd3 {[%clk 0:03:04.8]} 7... Be7 {[%clk 0:02:29.1]} 8. Nc3 {[%clk
0:03:05.3]} 8... O-O {[%clk 0:02:28.3]} 9. dxc5 {[%clk 0:03:04.3]} 9... Nc6
{[%clk 0:02:30]} 10. a3 {[%clk 0:03:03.7]} 10... Bxc5 {[%clk 0:02:30.7]} 11. Qe2
{[%clk 0:03:05.1]} 11... Ba7 {[%clk 0:02:31.5]} 12. Rd1 {[%clk 0:03:05.8]} 12...
Qe7 {[%clk 0:02:31.4]} 13. b4 {[%clk 0:03:01.6]} 13... b5 {[%clk 0:02:31.6]} 14.
Bb2 {[%clk 0:03:02.6]} 14... Bb7 {[%clk 0:02:32]} 15. Rac1 {[%clk 0:03:02.7]}
15... Rfd8 {[%clk 0:02:27.2]} 16. Ne4 {[%clk 0:02:56.4]} 16... Nxe4 {[%clk
0:01:54.9]} 17. Bxe4 {[%clk 0:02:56.9]} 17... Rxd1+ {[%clk 0:01:54.3]} 18. Qxd1
{[%clk 0:02:57.7]} 18... Nd8 {[%clk 0:01:49.6]} 19. Qc2 {[%clk 0:02:18.7]} 19...
Bxe4 {[%clk 0:01:00.5]} 20. Qxe4 {[%clk 0:02:19]} 20... Nb7 {[%clk 0:01:01.1]}
21. Qe5 {[%clk 0:01:56.7]} 21... f6 {[%clk 0:00:50]} 22. Rc7 {[%clk 0:01:57.4]}
22... Qd8 {[%clk 0:00:27.6]} 23. Qxe6+ {[%clk 0:01:58.4]} 23... Kh8 {[%clk
0:00:25.2]} 24. Rd7 {[%clk 0:01:59.4]} 24... Qc8 {[%clk 0:00:15.2]} 25. Qf7
{[%clk 0:01:56.7]} 25... Qg8 {[%clk 0:00:03.5]} 26. Qxg8+ {[%clk 0:01:57.5]}
26... Kxg8 {[%clk 0:00:05.4]} 27. Rxb7 {[%clk 0:01:58.9]} 27... Rd8 {[%clk
0:00:06.2]} 28. Bd4 {[%clk 0:01:57.3]} 28... Bxd4 {[%clk 0:00:07.1]} 29. Nxd4
{[%clk 0:01:58.5]} 29... Rc8 {[%clk 0:00:08.7]} 30. g4 {[%clk 0:01:58.5]} 30...
Rc3 {[%clk 0:00:09.9]} 31. Ne6 {[%clk 0:01:53.3]} 31... Rxa3 {[%clk 0:00:07.7]}
32. f4 {[%clk 0:01:53.4]} 32... Rxe3 {[%clk 0:00:06.9]} 33. f5 {[%clk
0:01:54.5]} 33... Re4 {[%clk 0:00:03.8]} 34. Rxg7+ {[%clk 0:01:53.9]} 34... Kh8
{[%clk 0:00:04.9]} 35. Ra7 {[%clk 0:01:52.7]} 35... Rxg4+ {[%clk 0:00:02.9]} 36.
Kf2 {[%clk 0:01:52.5]} 36... h5 {[%clk 0:00:03.9]} 37. Rxa6 {[%clk 0:01:50.1]}
37... Rxb4 {[%clk 0:00:04.4]} 38. Ra7 {[%clk 0:01:31.9]} 38... Rb2+ {[%clk
0:00:03.8]} 39. Kg3 {[%clk 0:01:32.6]} 39... Rb4 {[%clk 0:00:04.2]} 40. h4
{[%clk 0:01:32.4]} 40... Rg4+ {[%clk 0:00:04.5]} 41. Kh3 {[%clk 0:01:33.7]}
41... Rb4 {[%clk 0:00:03.9]} 42. Rb7 {[%clk 0:01:32.3]} 42... Rb3+ {[%clk
0:00:05.1]} 43. Kg2 {[%clk 0:01:33.5]} 43... Rb4 {[%clk 0:00:06.4]} 44. Kg3
{[%clk 0:01:34.2]} 44... Rb3+ {[%clk 0:00:07.4]} 45. Kf4 {[%clk 0:01:33.3]}
45... Rb4+ {[%clk 0:00:08.4]} 46. Kf3 {[%clk 0:01:34]} 46... Rxh4 {[%clk
0:00:07.8]} 47. Rxb5 {[%clk 0:01:31.9]} 47... Rc4 {[%clk 0:00:07.4]} 48. Rb7
{[%clk 0:01:24.4]} 48... h4 {[%clk 0:00:04.7]} 49. Kg2 {[%clk 0:01:25.1]} 49...
Rg4+ {[%clk 0:00:04.8]} 50. Kh3 {[%clk 0:01:25.2]} 50... Rc4 {[%clk 0:00:05.7]}
51. Nf8 {[%clk 0:01:23.8]} 51... Rc3+ {[%clk 0:00:03.3]} 52. Kxh4 {[%clk
0:01:22.9]} 52... Rf3 {[%clk 0:00:04.6]} 53. Kg4 {[%clk 0:01:22.1]} 53... Rd3
{[%clk 0:00:04.7]} 54. Kh5 {[%clk 0:01:21.9]} 54... Rh3+ {[%clk 0:00:05.7]} 55.
Kg6 {[%clk 0:01:22.1]} 55... Kg8 {[%clk 0:00:05]} 56. Ne6 {[%clk 0:01:21.4]}
56... Rg3+ {[%clk 0:00:06.4]} 57. Kxf6 {[%clk 0:01:22.7]} 57... Rf3 {[%clk
0:00:06]} 58. Rb8+ {[%clk 0:01:21.9]} 1-0

[Event "*** Titled Tuesday 3|2 Blitz"]
[Site "Chess.com"]
[Date "2016.07.05"]
[Round "8"]
[White "ChessNinja48"]
[Black "saraswathii"]
[Result "0-1"]
[WhiteElo "2328"]
[BlackElo "2077"]
[TimeControl "180+2"]
[EndTime "18:42:13 PDT"]
[Termination "saraswathii won by resignation"]

1. d4 {[%clk 0:03:01.9]} 1... Nc6 {[%clk 0:03:00.4]} 2. Nf3 {[%clk 0:03:02.4]}
2... d5 {[%clk 0:03:01.1]} 3. c4 {[%clk 0:03:01.5]} 3... Bg4 {[%clk 0:03:00.7]}
4. Nc3 {[%clk 0:02:59.2]} 4... e6 {[%clk 0:02:59.4]} 5. e3 {[%clk 0:02:58.6]}
5... Nf6 {[%clk 0:02:55.7]} 6. Be2 {[%clk 0:02:54.4]} 6... Bb4 {[%clk
0:02:54.1]} 7. O-O {[%clk 0:02:54.9]} 7... O-O {[%clk 0:02:33.6]} 8. a3 {[%clk
0:02:42.5]} 8... Bxc3 {[%clk 0:02:28.3]} 9. bxc3 {[%clk 0:02:43.7]} 9... dxc4
{[%clk 0:02:29]} 10. Bxc4 {[%clk 0:02:37.4]} 10... Ne4 {[%clk 0:02:27.6]} 11.
Bb2 {[%clk 0:02:34.5]} 11... Na5 {[%clk 0:02:01.7]} 12. Be2 {[%clk 0:02:27.8]}
12... Qf6 {[%clk 0:01:48.9]} 13. c4 {[%clk 0:02:11.1]} 13... Bxf3 {[%clk
0:01:40.9]} 14. gxf3 {[%clk 0:02:12.2]} 14... Nd6 {[%clk 0:01:36.4]} 15. Rc1
{[%clk 0:01:57.7]} 15... Nf5 {[%clk 0:01:30.3]} 16. Kh1 {[%clk 0:01:58.9]} 16...
Rad8 {[%clk 0:01:26.4]} 17. Qc2 {[%clk 0:01:53.8]} 17... Qh6 {[%clk 0:01:21.5]}
18. Rg1 {[%clk 0:01:51.8]} 18... Nc6 {[%clk 0:01:10.5]} 19. Qe4 {[%clk
0:01:47.3]} 19... Nce7 {[%clk 0:01:08.5]} 20. Bd3 {[%clk 0:01:40.1]} 20... Ng6
{[%clk 0:01:04.3]} 21. d5 {[%clk 0:01:22.9]} 21... Nd6 {[%clk 0:00:57.2]} 22.
Qd4 {[%clk 0:01:05.5]} 22... e5 {[%clk 0:00:49.4]} 23. Qxa7 {[%clk 0:01:04.3]}
23... Qh5 {[%clk 0:00:39.2]} 24. Be2 {[%clk 0:00:41.1]} 24... e4 {[%clk
0:00:35.5]} 25. Qd4 {[%clk 0:00:36.9]} 25... f6 {[%clk 0:00:29.2]} 26. Qd1
{[%clk 0:00:34.9]} 26... exf3 {[%clk 0:00:27.9]} 27. Bxf3 {[%clk 0:00:36.8]}
27... Qh4 {[%clk 0:00:28.8]} 28. Rg2 {[%clk 0:00:24.5]} 28... Ne4 {[%clk
0:00:22.8]} 29. Qc2 {[%clk 0:00:23]} 29... Ng5 {[%clk 0:00:21.6]} 30. Bg4 {[%clk
0:00:21.4]} 30... Rfe8 {[%clk 0:00:19.9]} 31. Rcg1 {[%clk 0:00:21.1]} 31... Re4
{[%clk 0:00:18.3]} 32. Bf5 {[%clk 0:00:21.8]} 32... Rxc4 {[%clk 0:00:19.1]} 33.
Qb3 {[%clk 0:00:21]} 33... Nf3 {[%clk 0:00:18.7]} 34. d6 {[%clk 0:00:16.8]}
34... Rxd6 {[%clk 0:00:13.7]} 35. Bd3 {[%clk 0:00:13.9]} 35... Rxd3 {[%clk
0:00:06.9]} 36. Qxd3 {[%clk 0:00:13]} 36... Nxg1 {[%clk 0:00:08.2]} 37. Qd5+
{[%clk 0:00:11.8]} 37... Kf8 {[%clk 0:00:08.6]} 38. Qd8+ {[%clk 0:00:12.6]}
38... Kf7 {[%clk 0:00:09.5]} 39. Qd5+ {[%clk 0:00:13.2]} 39... Ke7 {[%clk
0:00:10.9]} 40. Kxg1 {[%clk 0:00:13.4]} 40... Qe4 {[%clk 0:00:10.1]} 41. Qxe4+
{[%clk 0:00:10.1]} 41... Rxe4 {[%clk 0:00:12]} 42. Kf1 {[%clk 0:00:08.3]} 42...
Kf7 {[%clk 0:00:13.2]} 43. Ke2 {[%clk 0:00:09.7]} 43... Re6 {[%clk 0:00:12.8]}
44. Bc3 {[%clk 0:00:10.4]} 44... Nf4+ {[%clk 0:00:13.7]} 45. Kf3 {[%clk
0:00:10.9]} 45... Nxg2 {[%clk 0:00:15]} 46. Kxg2 {[%clk 0:00:12.8]} 46... Ra6
{[%clk 0:00:15.9]} 47. Bb2 {[%clk 0:00:13.9]} 47... c5 {[%clk 0:00:17.2]} 48.
Kf3 {[%clk 0:00:15.5]} 48... b5 {[%clk 0:00:18.6]} 49. Ke4 {[%clk 0:00:17]}
49... Ra4+ {[%clk 0:00:18.7]} 50. Kd5 {[%clk 0:00:16.1]} 50... b4 {[%clk
0:00:18.9]} 51. axb4 {[%clk 0:00:16.1]} 51... cxb4 {[%clk 0:00:20.1]} 52. Kc4
{[%clk 0:00:17.4]} 52... Ra5 {[%clk 0:00:20.7]} 53. Kxb4 {[%clk 0:00:18.1]}
53... Rh5 {[%clk 0:00:22.1]} 54. Kc4 {[%clk 0:00:19.2]} 54... Rxh2 {[%clk
0:00:23.1]} 55. f4 {[%clk 0:00:21.1]} 55... Rxb2 {[%clk 0:00:24.1]} 0-1

[Event "*** Titled Tuesday 3|2 Blitz"]
[Site "Chess.com"]
[Date "2016.07.05"]
[Round "8"]
[White "WanderingPuppet"]
[Black "akinov-akinseye"]
[Result "0-1"]
[WhiteElo "2261"]
[BlackElo "1914"]
[TimeControl "180+2"]
[EndTime "18:42:17 PDT"]
[Termination "akinov-akinseye won by resignation"]

1. e4 {[%clk 0:02:47.1]} 1... e5 {[%clk 0:03:00.2]} 2. Nf3 {[%clk 0:02:44]} 2...
Nc6 {[%clk 0:03:01.1]} 3. Bb5 {[%clk 0:02:34.2]} 3... a6 {[%clk 0:03:00.4]} 4.
Ba4 {[%clk 0:02:34.3]} 4... Nf6 {[%clk 0:02:51.8]} 5. O-O {[%clk 0:02:34.5]}
5... Be7 {[%clk 0:02:49.3]} 6. Re1 {[%clk 0:02:33.9]} 6... b5 {[%clk 0:02:44.4]}
7. Bb3 {[%clk 0:02:34.9]} 7... O-O {[%clk 0:02:42.6]} 8. a4 {[%clk 0:02:35.7]}
8... b4 {[%clk 0:02:37.2]} 9. a5 {[%clk 0:02:36.3]} 9... Bc5 {[%clk 0:02:34.8]}
10. d3 {[%clk 0:02:30.9]} 10... d6 {[%clk 0:02:31.7]} 11. Be3 {[%clk 0:02:24.7]}
11... Bxe3 {[%clk 0:02:28.5]} 12. Rxe3 {[%clk 0:02:24.2]} 12... Bg4 {[%clk
0:02:25]} 13. h3 {[%clk 0:02:23.3]} 13... Bxf3 {[%clk 0:02:23.3]} 14. Rxf3
{[%clk 0:02:25.2]} 14... Nd4 {[%clk 0:02:21.5]} 15. Rg3 {[%clk 0:02:26.7]} 15...
Nxb3 {[%clk 0:02:18.8]} 16. cxb3 {[%clk 0:02:28.6]} 16... Re8 {[%clk 0:02:16.8]}
17. Nd2 {[%clk 0:02:24.6]} 17... g6 {[%clk 0:02:13]} 18. Nc4 {[%clk 0:02:24]}
18... d5 {[%clk 0:02:10.3]} 19. exd5 {[%clk 0:02:20.3]} 19... Nxd5 {[%clk
0:02:07.8]} 20. Qd2 {[%clk 0:02:10.7]} 20... Nf4 {[%clk 0:01:58.9]} 21. Re1
{[%clk 0:02:04.6]} 21... f6 {[%clk 0:01:54.3]} 22. Kh2 {[%clk 0:01:36.2]} 22...
Rb8 {[%clk 0:01:50]} 23. Rge3 {[%clk 0:01:30.9]} 23... Qd7 {[%clk 0:01:44.5]}
24. Rd1 {[%clk 0:00:49.9]} 24... Ne6 {[%clk 0:01:41.4]} 25. Rf3 {[%clk
0:00:42.4]} 25... Kg7 {[%clk 0:01:38.7]} 26. Re3 {[%clk 0:00:33.6]} 26... Nd4
{[%clk 0:01:35.2]} 27. Rde1 {[%clk 0:00:29.9]} 27... Nxb3 {[%clk 0:01:33.1]} 28.
Qd1 {[%clk 0:00:31.6]} 28... Nd4 {[%clk 0:01:29.9]} 29. Re4 {[%clk 0:00:21.4]}
29... Ne6 {[%clk 0:01:27.4]} 30. b3 {[%clk 0:00:21.5]} 30... Nc5 {[%clk
0:01:19.1]} 31. R4e3 {[%clk 0:00:22]} 31... Rbd8 {[%clk 0:01:16.9]} 32. Qb1
{[%clk 0:00:21.6]} 32... Qd4 {[%clk 0:01:11.8]} 33. Rd1 {[%clk 0:00:21.4]} 33...
e4 {[%clk 0:01:09.5]} 34. Rd2 {[%clk 0:00:20.1]} 34... exd3 {[%clk 0:01:07.6]}
35. Qd1 {[%clk 0:00:17.2]} 35... Rxe3 {[%clk 0:01:04]} 36. fxe3 {[%clk
0:00:19.1]} 36... Qd5 {[%clk 0:01:01.6]} 37. Qg4 {[%clk 0:00:18.1]} 37... Nxb3
{[%clk 0:00:58]} 38. Rb2 {[%clk 0:00:14.3]} 38... Nxa5 {[%clk 0:00:55.7]} 39.
Nd2 {[%clk 0:00:12.8]} 39... c5 {[%clk 0:00:53.9]} 40. Rb1 {[%clk 0:00:12.2]}
40... c4 {[%clk 0:00:52.3]} 41. Rxb4 {[%clk 0:00:07.8]} 41... c3 {[%clk
0:00:50.7]} 42. Rd4 {[%clk 0:00:09.4]} 42... Qe5+ {[%clk 0:00:46.1]} 43. g3
{[%clk 0:00:05.7]} 43... Rxd4 {[%clk 0:00:44]} 44. exd4 {[%clk 0:00:07.6]} 44...
Qe2+ {[%clk 0:00:41.5]} 45. Kg1 {[%clk 0:00:08.2]} 45... Qxg4 {[%clk 0:00:40.3]}
46. hxg4 {[%clk 0:00:10.1]} 46... cxd2 {[%clk 0:00:40.2]} 47. Kf2 {[%clk
0:00:11.6]} 47... d1=Q {[%clk 0:00:40.1]} 48. Ke3 {[%clk 0:00:13.5]} 48... Qe2+
{[%clk 0:00:40.9]} 49. Kf4 {[%clk 0:00:15.4]} 49... d2 {[%clk 0:00:40.8]} 50. d5
{[%clk 0:00:16.6]} 50... Qe5+ {[%clk 0:00:41]} 0-1

[Event "*** Titled Tuesday 3|2 Blitz"]
[Site "Chess.com"]
[Date "2016.07.05"]
[Round "8"]
[White "GeorgMeier"]
[Black "SavelijTartakover"]
[Result "0-1"]
[WhiteElo "2633"]
[BlackElo "2523"]
[TimeControl "180+2"]
[EndTime "18:42:25 PDT"]
[Termination "SavelijTartakover won by checkmate"]

1. Nf3 {[%clk 0:03:01.9]} 1... Nf6 {[%clk 0:03:00.2]} 2. g3 {[%clk 0:03:02.5]}
2... g6 {[%clk 0:03:00.7]} 3. Bg2 {[%clk 0:03:04]} 3... Bg7 {[%clk 0:03:02.2]}
4. O-O {[%clk 0:03:04.9]} 4... O-O {[%clk 0:03:03]} 5. d4 {[%clk 0:03:06.4]}
5... d6 {[%clk 0:03:03.2]} 6. b3 {[%clk 0:03:07.6]} 6... c5 {[%clk 0:03:02.1]}
7. c4 {[%clk 0:03:02.1]} 7... Bd7 {[%clk 0:02:57.8]} 8. Bb2 {[%clk 0:03:01.9]}
8... cxd4 {[%clk 0:02:58.4]} 9. Nxd4 {[%clk 0:03:03.8]} 9... Nc6 {[%clk
0:02:59.9]} 10. Nc2 {[%clk 0:03:05.4]} 10... a6 {[%clk 0:02:57.3]} 11. Nc3
{[%clk 0:02:57.7]} 11... Rb8 {[%clk 0:02:58]} 12. Ne3 {[%clk 0:02:57.5]} 12...
b5 {[%clk 0:02:57.1]} 13. Qd2 {[%clk 0:02:59]} 13... Na5 {[%clk 0:02:47.5]} 14.
Ncd5 {[%clk 0:02:58.8]} 14... Nxd5 {[%clk 0:02:29.7]} 15. cxd5 {[%clk
0:02:59.7]} 15... Bxb2 {[%clk 0:02:26.8]} 16. Qxb2 {[%clk 0:03:01.6]} 16... Qb6
{[%clk 0:02:27.8]} 17. Rfc1 {[%clk 0:02:50.7]} 17... Rfc8 {[%clk 0:02:28]} 18.
h4 {[%clk 0:02:50.5]} 18... Rxc1+ {[%clk 0:02:18.2]} 19. Rxc1 {[%clk 0:02:50.9]}
19... Rc8 {[%clk 0:02:19.6]} 20. Rxc8+ {[%clk 0:02:50.6]} 20... Bxc8 {[%clk
0:02:20]} 21. Qc3 {[%clk 0:02:52.1]} 21... Bd7 {[%clk 0:02:17.8]} 22. b4 {[%clk
0:02:53.5]} 22... Nc4 {[%clk 0:02:09.7]} 23. Nxc4 {[%clk 0:02:52.1]} 23... Qc7
{[%clk 0:02:11]} 24. Be4 {[%clk 0:02:49.5]} 24... bxc4 {[%clk 0:02:01.9]} 25.
Bc2 {[%clk 0:02:48.9]} 25... Bf5 {[%clk 0:01:54.2]} 26. e4 {[%clk 0:02:41.2]}
26... Bg4 {[%clk 0:01:55.1]} 27. Kf1 {[%clk 0:02:40.2]} 27... Qc8 {[%clk
0:01:50.6]} 28. Ke1 {[%clk 0:02:38.6]} 28... e6 {[%clk 0:01:39.9]} 29. dxe6
{[%clk 0:02:31.1]} 29... Bxe6 {[%clk 0:01:37]} 30. Kd2 {[%clk 0:02:29.6]} 30...
d5 {[%clk 0:01:37.3]} 31. Qd4 {[%clk 0:02:15.3]} 31... dxe4 {[%clk 0:01:35]} 32.
Bxe4 {[%clk 0:02:17.2]} 32... Bf5 {[%clk 0:01:26.8]} 33. Kc3 {[%clk 0:02:15.1]}
33... Bxe4 {[%clk 0:01:16.5]} 34. Qxe4 {[%clk 0:02:16.8]} 34... Qd7 {[%clk
0:01:04.5]} 35. Kxc4 {[%clk 0:01:52.9]} 35... Qa4 {[%clk 0:00:58.5]} 36. Qb1
{[%clk 0:01:19.8]} 36... Qc6+ {[%clk 0:00:59.1]} 37. Kb3 {[%clk 0:01:07]} 37...
Qf3+ {[%clk 0:00:57.6]} 38. Ka4 {[%clk 0:01:04.8]} 38... Qxf2 {[%clk 0:00:57.9]}
39. Ka5 {[%clk 0:00:50.2]} 39... Qxg3 {[%clk 0:00:46.8]} 40. Kxa6 {[%clk
0:00:50.5]} 40... Qd6+ {[%clk 0:00:47.5]} 41. Ka5 {[%clk 0:00:51.3]} 41... Qd8+
{[%clk 0:00:48.3]} 42. Ka4 {[%clk 0:00:51.4]} 42... Qxh4 {[%clk 0:00:48.3]} 43.
Qd3 {[%clk 0:00:48.7]} 43... h5 {[%clk 0:00:48]} 44. Kb3 {[%clk 0:00:36.5]}
44... Qf2 {[%clk 0:00:41.3]} 45. b5 {[%clk 0:00:34.8]} 45... h4 {[%clk
0:00:42.4]} 46. Qd8+ {[%clk 0:00:35.5]} 46... Kg7 {[%clk 0:00:39.1]} 47. b6
{[%clk 0:00:36.7]} 47... h3 {[%clk 0:00:39.8]} 48. Qc7 {[%clk 0:00:24.7]} 48...
h2 {[%clk 0:00:38.7]} 49. b7 {[%clk 0:00:26.1]} 49... h1=Q {[%clk 0:00:32]} 50.
b8=Q {[%clk 0:00:26.4]} 50... Qb1+ {[%clk 0:00:31]} 51. Ka3 {[%clk 0:00:27.6]}
51... Qfxa2# {[%clk 0:00:30.6]} 0-1

[Event "*** Titled Tuesday 3|2 Blitz"]
[Site "Chess.com"]
[Date "2016.07.05"]
[Round "8"]
[White "Alliswell998"]
[Black "IamSchrodingersCat"]
[Result "0-1"]
[WhiteElo "2173"]
[BlackElo "2242"]
[TimeControl "180+2"]
[EndTime "18:44:59 PDT"]
[Termination "IamSchrodingersCat won by checkmate"]

1. e4 {[%clk 0:02:17.4]} 1... c5 {[%clk 0:01:36.2]} 2. Nc3 {[%clk 0:02:17.3]}
2... a6 {[%clk 0:01:36]} 3. Nf3 {[%clk 0:02:17.2]} 3... d6 {[%clk 0:01:36.7]} 4.
d4 {[%clk 0:02:18.5]} 4... cxd4 {[%clk 0:01:38.6]} 5. Nxd4 {[%clk 0:02:20.3]}
5... Nf6 {[%clk 0:01:40]} 6. Be3 {[%clk 0:02:21.6]} 6... e5 {[%clk 0:01:40.9]}
7. Nb3 {[%clk 0:02:23.1]} 7... Be7 {[%clk 0:01:40.7]} 8. f3 {[%clk 0:02:23.9]}
8... Be6 {[%clk 0:01:41.5]} 9. Qd2 {[%clk 0:02:25.3]} 9... Nbd7 {[%clk
0:01:41.7]} 10. g4 {[%clk 0:02:24.6]} 10... Nb6 {[%clk 0:01:39.7]} 11. g5 {[%clk
0:02:24]} 11... Nfd7 {[%clk 0:01:40.7]} 12. O-O-O {[%clk 0:02:22.5]} 12... Rc8
{[%clk 0:01:34.9]} 13. Kb1 {[%clk 0:02:21]} 13... Nc4 {[%clk 0:01:28.7]} 14.
Bxc4 {[%clk 0:02:20.9]} 14... Rxc4 {[%clk 0:01:30.6]} 15. Nd5 {[%clk 0:02:14.1]}
15... Bxd5 {[%clk 0:01:23.1]} 16. Qxd5 {[%clk 0:02:07.9]} 16... b5 {[%clk
0:01:22.1]} 17. h4 {[%clk 0:01:52]} 17... O-O {[%clk 0:01:18.9]} 18. Qd2 {[%clk
0:01:48.8]} 18... Qc7 {[%clk 0:00:59.5]} 19. Rh2 {[%clk 0:01:28.1]} 19... Rc8
{[%clk 0:00:48]} 20. h5 {[%clk 0:01:13.3]} 20... Ra8 {[%clk 0:00:18.2]} 21. g6
{[%clk 0:01:11.5]} 21... Nf6 {[%clk 0:00:17.2]} 22. h6 {[%clk 0:00:59.5]} 22...
fxg6 {[%clk 0:00:17.6]} 23. hxg7 {[%clk 0:00:59.2]} 23... Kxg7 {[%clk
0:00:17.1]} 24. Rdh1 {[%clk 0:00:54.8]} 24... Rh8 {[%clk 0:00:15]} 25. Bg5
{[%clk 0:00:36.8]} 25... Qd7 {[%clk 0:00:10.2]} 26. Bh4 {[%clk 0:00:23.3]} 26...
Qe6 {[%clk 0:00:10.3]} 27. Qh6+ {[%clk 0:00:19.8]} 27... Kg8 {[%clk 0:00:07.4]}
28. Bf2 {[%clk 0:00:19.5]} 28... Rc7 {[%clk 0:00:05.3]} 29. Nd2 {[%clk
0:00:17.1]} 29... Qf7 {[%clk 0:00:06.1]} 30. Nf1 {[%clk 0:00:17.8]} 30... Bf8
{[%clk 0:00:07.3]} 31. Qh3 {[%clk 0:00:18.3]} 31... Bg7 {[%clk 0:00:07.2]} 32.
Ne3 {[%clk 0:00:19.5]} 32... Kf8 {[%clk 0:00:06.6]} 33. Rd1 {[%clk 0:00:19.7]}
33... Qe7 {[%clk 0:00:06.7]} 34. Bh4 {[%clk 0:00:20.7]} 34... Qd7 {[%clk
0:00:05.8]} 35. Qf1 {[%clk 0:00:17]} 35... Qe6 {[%clk 0:00:03.6]} 36. Rhd2
{[%clk 0:00:17.8]} 36... Rc6 {[%clk 0:00:04.6]} 37. Nd5 {[%clk 0:00:17]} 37...
Ne8 {[%clk 0:00:03.1]} 38. Qd3 {[%clk 0:00:16.2]} 38... Bh6 {[%clk 0:00:04.2]}
39. f4 {[%clk 0:00:17.2]} 39... Bxf4 {[%clk 0:00:04.6]} 40. Rf2 {[%clk 0:00:18]}
40... Kg8 {[%clk 0:00:04.7]} 41. Rdf1 {[%clk 0:00:17.8]} 41... Kg7 {[%clk
0:00:04.8]} 42. Qf3 {[%clk 0:00:17]} 42... Rf8 {[%clk 0:00:05.5]} 43. Qg2 {[%clk
0:00:14.7]} 43... Nf6 {[%clk 0:00:05.6]} 44. c3 {[%clk 0:00:14.5]} 44... Nxd5
{[%clk 0:00:05.4]} 45. exd5 {[%clk 0:00:15.8]} 45... Qf5+ {[%clk 0:00:06.9]} 46.
Ka1 {[%clk 0:00:17.4]} 46... Rc7 {[%clk 0:00:08.1]} 47. Bg3 {[%clk 0:00:16.9]}
47... Rcf7 {[%clk 0:00:08.8]} 48. Rh1 {[%clk 0:00:14.9]} 48... Kg8 {[%clk
0:00:08.5]} 49. Bxf4 {[%clk 0:00:14.4]} 49... exf4 {[%clk 0:00:10.4]} 50. Qf3
{[%clk 0:00:13.7]} 50... a5 {[%clk 0:00:11.5]} 51. Rfh2 {[%clk 0:00:14.2]} 51...
b4 {[%clk 0:00:11.5]} 52. Rf1 {[%clk 0:00:11.5]} 52... Re7 {[%clk 0:00:11.2]}
53. Rhf2 {[%clk 0:00:11.6]} 53... bxc3 {[%clk 0:00:10.5]} 54. Qxc3 {[%clk
0:00:12.1]} 54... Qxd5 {[%clk 0:00:10.4]} 55. Qc2 {[%clk 0:00:06.6]} 55... Ref7
{[%clk 0:00:10.3]} 56. Rd2 {[%clk 0:00:08]} 56... Qe5 {[%clk 0:00:11]} 57. Re2
{[%clk 0:00:08.2]} 57... Qf6 {[%clk 0:00:11.1]} 58. Rd2 {[%clk 0:00:09]} 58...
a4 {[%clk 0:00:11.6]} 59. a3 {[%clk 0:00:09.3]} 59... Rb8 {[%clk 0:00:10.6]} 60.
Rdf2 {[%clk 0:00:09.5]} 60... Rb3 {[%clk 0:00:11]} 61. Qc8+ {[%clk 0:00:05.2]}
61... Kg7 {[%clk 0:00:11.3]} 62. Qc2 {[%clk 0:00:06.1]} 62... f3 {[%clk
0:00:12.1]} 63. Rh1 {[%clk 0:00:06.6]} 63... Rxa3+ {[%clk 0:00:12.3]} 64. Kb1
{[%clk 0:00:06.8]} 64... Rb3 {[%clk 0:00:14.2]} 65. Rfh2 {[%clk 0:00:08]} 65...
Kg8 {[%clk 0:00:14.9]} 66. Qc8+ {[%clk 0:00:08]} 66... Rf8 {[%clk 0:00:15.7]}
67. Qc4+ {[%clk 0:00:08]} 67... Qf7 {[%clk 0:00:16.9]} 68. Qd4 {[%clk
0:00:07.3]} 68... Qf5+ {[%clk 0:00:15.1]} 69. Ka2 {[%clk 0:00:07.3]} 69... Rf7
{[%clk 0:00:13.5]} 70. Qxd6 {[%clk 0:00:07.5]} 70... h5 {[%clk 0:00:10.7]} 71.
Qd8+ {[%clk 0:00:07.4]} 71... Kg7 {[%clk 0:00:11.3]} 72. Qd4+ {[%clk 0:00:08.4]}
72... Qf6 {[%clk 0:00:12.2]} 73. Qd2 {[%clk 0:00:06.4]} 73... f2 {[%clk
0:00:12.3]} 74. Rf1 {[%clk 0:00:02.8]} 74... Rf3 {[%clk 0:00:13.2]} 75. Rg2
{[%clk 0:00:04]} 75... Qe6+ {[%clk 0:00:13.3]} 76. Kb1 {[%clk 0:00:05.4]} 76...
Qe4+ {[%clk 0:00:13.7]} 77. Qc2 {[%clk 0:00:06.4]} 77... Qxc2+ {[%clk
0:00:13.9]} 78. Kxc2 {[%clk 0:00:08.3]} 78... h4 {[%clk 0:00:15.4]} 79. Rh1
{[%clk 0:00:09.4]} 79... R7f4 {[%clk 0:00:14.4]} 80. Rf1 {[%clk 0:00:10.2]}
80... h3 {[%clk 0:00:14.9]} 81. Rh2 {[%clk 0:00:11.6]} 81... g5 {[%clk
0:00:16.1]} 82. Kd2 {[%clk 0:00:13.1]} 82... g4 {[%clk 0:00:17.2]} 83. Ke2
{[%clk 0:00:15]} 83... g3 {[%clk 0:00:14.7]} 84. Rxh3 {[%clk 0:00:16.3]} 84...
g2 {[%clk 0:00:16.3]} 85. Rxf3 {[%clk 0:00:12.8]} 85... gxf1=Q+ {[%clk 0:00:17]}
86. Kxf1 {[%clk 0:00:14.1]} 86... Rxf3 {[%clk 0:00:18.9]} 87. b4 {[%clk
0:00:15.3]} 87... a3 {[%clk 0:00:19]} 88. b5 {[%clk 0:00:16.4]} 88... Rf7 {[%clk
0:00:20.9]} 89. b6 {[%clk 0:00:17.8]} 89... a2 {[%clk 0:00:22.8]} 90. b7 {[%clk
0:00:19.2]} 90... a1=Q+ {[%clk 0:00:24.7]} 91. Kg2 {[%clk 0:00:20.5]} 91...
f1=Q+ {[%clk 0:00:26.6]} 92. Kg3 {[%clk 0:00:22]} 92... Qc3+ {[%clk 0:00:27.3]}
93. Kh4 {[%clk 0:00:22.8]} 93... Qfc4+ {[%clk 0:00:29.2]} 94. Kh5 {[%clk
0:00:23.6]} 94... Qe5# {[%clk 0:00:31.1]} 0-1